Cogmind - Beta 16 --- EXPLORER MODE // 2025.12.12 @ 14:37:37 Player: K.K.Y. Result: Destroyed by S-10 Pest with Light Assault Rifle Performance ------------- Evolutions (0) 0 Regions Visited (3) 600 Robots Destroyed (41) 205 Value Destroyed (1075) 1075 Prototype IDs (19) 380 Alien Tech Used (0) 0 Bonus (0) 0 TOTAL SCORE: 2260 Bonus ------- None Cogmind --------- Core Integrity 0/250 Matter 270/300 Energy 100/100 System Corruption 0% Temperature Cool (0) Movement Hovering (1200) Ox16 Location -10/Subcaves Parts ------- > --- POWER (1) -------- (None) > --- PROPULSION (3) --- Combat Airjet > --- UTILITY (2) ------ Humpback > --- WEAPON (2) ------- (None) > --- INVENTORY (35) --- Spiked Treads Subdweller Monowheel Subdweller Monowheel High-capacity Storage Unit Subdweller Optics Subdweller Optics Makeshift Targeting Computer Scrap Shield Makeshift Hacking Suite Makeshift System Restoration Module Decoy Drone Bay (16/16) Subdweller Laser Subdweller Beam Cannon Subdweller Machine Gun Datajack Makeshift Axe SUBCON Basin (Full) Peak State ------------ > --- POWER ------------ (None) > --- PROPULSION ------- Combat Airjet Makeshift Flight Unit Makeshift Flight Unit > --- UTILITY ---------- Humpback > --- WEAPON ----------- (None) > --- INVENTORY -------- Spiked Treads Subdweller Monowheel Subdweller Monowheel High-capacity Storage Unit Subdweller Optics Subdweller Optics Makeshift Targeting Computer Scrap Shield Makeshift Hacking Suite Makeshift System Restoration Module Decoy Drone Bay Subdweller Laser Subdweller Beam Cannon Subdweller Machine Gun Datajack Makeshift Axe SUBCON Basin [Rating: 38] Favorites ----------- Power Light Deuterium Engine Engine Light Deuterium Engine Propulsion Makeshift Flight Unit Treads Spiked Treads Leg Carbon-fiber Leg Wheel Subdweller Monowheel Hover Unit Combat Airjet Flight Unit Makeshift Flight Unit Utility High-capacity Storage Unit Device Improved Terrain Scanner Storage High-capacity Storage Unit Weapon Beam Cannon Energy Gun Subdweller Laser Energy Cannon Beam Cannon Ballistic Gun Battle Rifle Special Weapon Mining Laser Build | -11 -10 -10 -10 ------- Run | Yrd Mat Min Sub Slots Evolved 1 | . 1 . . Power . | . . . . Propulsion 1 | . 1 . . Utility . | . . . . Weapon . | . . . . Parts Attached 46 | 4 14 7 21 Power 5 | . 3 2 . Engine 5 | . 3 2 . Core . | . . . . Reactor . | . . . . Propulsion 23 | 2 8 1 12 Treads 1 | . . . 1 Leg 3 | . . . 3 Wheel 13 | 2 6 . 5 Hover 1 | . . . 1 Flight 5 | . 2 1 2 Utility 6 | . 1 3 2 Device 4 | . 1 3 . Storage 2 | . . . 2 Processor . | . . . . Hackware . | . . . . Protection . | . . . . Artifact . | . . . . Weapon 12 | 2 2 1 7 Energy Gun 3 | 1 . . 2 Energy Cannon 4 | . 2 1 1 Ballistic Gun 4 | 1 . . 3 Ballistic Cannon . | . . . . Launcher . | . . . . Special Weapon 1 | . . . 1 Impact Weapon . | . . . . Slashing Weapon . | . . . . Piercing Weapon . | . . . . Special Melee Weapon . | . . . . Unidentified Prototypes 2 | . . 2 . Parts Lost 20 | . 1 . 19 Power 2 | . 1 . 1 Propulsion 10 | . . . 10 Utility 2 | . . . 2 Weapon 6 | . . . 6 Highest Loss Streak 4 | . 1 . 4 To Critical Strikes 1 | . . . 1 Average Backups 10 | 2 3 4 12 Power . | . . . . Propulsion 2 | . . . 2 Utility 5 | . 1 2 6 Weapon 2 | . 1 1 2 Tool/Special . | . . . . Unused Backups 13 | . 2 . 11 Power . | . . . . Propulsion 4 | . 2 . 2 Utility 6 | . . . 6 Weapon 2 | . . . 2 Tool/Special 1 | . . . 1 Average Slot Usage (%) 64 | . 71 87 61 Engine 4 | . 10 12 3 Treads 1 | . . . 2 Leg 4 | . . . 6 Wheel 4 | . 17 . 3 Hover 3 | . . . 4 Flight 12 | . 12 33 10 Device 5 | . 4 16 4 Storage 9 | . . . 11 Energy Gun 2 | . . . 3 Energy Cannon 7 | . 24 25 3 Ballistic Gun 4 | . . . 5 Peak Build Rating 38 | 4 6 23 38 Average Rating 20 | 1 5 16 23 On Entrance 8 | . 4 6 22 Avg Prop Armor Cover (%) 6 | . . . 6 Naked Turns . | . . . . Heaviest Build 200 | 3 12 25 200 Greatest Support 40 | 20 30 12 40 Greatest Overweight (x) 17 | . 1 2 17 Average Overweight (x) 2 | . . . 3 Largest Inventory Capacity 35 | 5 5 5 35 Average Capacity 21 | 5 5 5 25 Most Carried 33 | 5 5 5 33 Average Carried 16 | 2 3 4 19 Final Capacity 35 | 5 5 5 35 Final Carried 33 | 4 4 5 33 Class Distribution -------------------- 64% | Hacker-Mutant 31% | Hauler-Mutant 4% | Scavenger-Mutant Dominant Class ---------------- Hacker-Mutant | -10/Materials Hacker-Mutant | -10/Mines Hacker-Mutant | -10/Subcaves Resources | -11 -10 -10 -10 ----------- Run | Yrd Mat Min Sub Matter Collected 916 | 263 187 80 386 Remotely . | . . . . Salvage Created 1426 | 132 666 . 628 Parts 94 | 10 42 . 42 Haulers Intercepted 2 | . 2 . . Recyclers Shooed 1 | . 1 . . Parts Field Recycled . | . . . . Retrieved Matter . | . . . . Parts Self-Destructed . | . . . . Prevented . | . . . . Parts Restored . | . . . . Kills | -11 -10 -10 -10 ------- Run | Yrd Mat Min Sub Combat Hostiles Destroyed 28 | . 11 . 17 Guns 6 | . . . 6 Cannons 20 | . 11 . 9 Classes Destroyed 10 | 2 6 . 2 Worker 1 | . 1 . . Builder 1 | . 1 . . Tunneler 4 | 3 1 . . Hauler 2 | . 2 . . Recycler 2 | 1 1 . . Watcher 3 | . 3 . . Swarmer 4 | . 2 . 2 Grunt 9 | . 9 . . Sentry 1 | . . . 1 Subdweller 14 | . . . 14 Best Kill Streak 4 | 4 4 . 4 Combat Bots Only 4 | . 2 . 4 Max Kills in Single Turn 1 | 1 1 . 1 Gunslinging . | . . . . Exploded . | . . . . Melee . | . . . . Uniques/NPCs Destroyed . | . . . . Combat | -11 -10 -10 -10 -------- Run | Yrd Mat Min Sub Hostile Shots Fired 157 | . 17 . 140 Missed 51 | . 2 . 49 Hits 106 | . 15 . 91 Projectile 106 | . 15 . 91 AOE 15 | . . 5 10 Critical Strikes 3 | . . 1 2 Damage Taken 1565 | . 140 73 1352 Core 250 | . 21 17 212 Absorbed by Shields . | . . . . Ignored by Resistances 891 | . 88 44 759 Core Remaining (%) 100 | 100 . . . Volleys Fired 155 | 10 32 1 112 Largest 2 | 2 2 2 2 Hottest 160 | 60 120 120 160 Shots Fired 273 | 20 64 2 187 Gun 134 | 20 . . 114 Cannon 130 | . 64 2 64 Launcher . | . . . . Special 9 | . . . 9 Kinetic 90 | 10 . . 80 Thermal 163 | 10 64 2 87 Explosive . | . . . . Electromagnetic 20 | . . . 20 Robot Hit Streak 45 | 16 21 16 45 Robot Miss Streak 2 | . 2 . 2 Penetration Max . | . . . . Secondary Targets 1 | . . . 1 Max Gunslinging Chain 1 | . . . 1 Shots Hit Robots 153 | 16 39 2 96 Core Hits 52 | 5 21 . 26 Critical Kills 2 | . 1 . 1 Critical Parts Destroyed . | . . . . Critical Strikes 2 | . 1 . 1 Meltdown 2 | . 1 . 1 Melee Attacks . | . . . . Impact . | . . . . Slashing . | . . . . Piercing . | . . . . Sneak Attacks . | . . . . Combat Hostiles . | . . . . Follow-up Attacks . | . . . . Damage Inflicted 2717 | 196 745 35 1741 Guns 1203 | 196 . . 1007 Cannons 1458 | . 737 35 686 Explosions . | . . . . Melee . | . . . . Ramming 8 | . 8 . . Kinetic 754 | 84 . . 670 Thermal 1726 | 112 737 35 842 Explosive . | . . . . Electromagnetic 229 | . . . 229 Impact . | . . . . Slashing . | . . . . Piercing . | . . . . Highest Corruption . | . . . . Average Corruption . | . . . . Corruption Purged . | . . . . Corruption Blocked . | . . . . Overload Shots . | . . . . Overflow Damage 5 | . 5 . . Projectiles 5 | . 5 . . Explosions . | . . . . Melee . | . . . . Knockbacks . | . . . . Impact . | . . . . Kinetic . | . . . . Secondary . | . . . . Self-Inflicted Damage 3 | . 3 . . Shots . | . . . . Rammed 2 | . 2 . . Targets Rammed 2 | . 2 . . Kicked . | . . . . Crushed . | . . . . Highest Temperature 240 | 15 240 66 125 Average Temperature 61 | 10 77 37 32 Received Heat Transfer 345 | . 57 . 288 Siege Activations . | . . . . Martial Activations . | . . . . Shielding Activations . | . . . . Robots Disrupted . | . . . . Combat Hostiles . | . . . . Robots Corrupted 1 | . . . 1 Combat Hostiles 1 | . . . 1 Parts Fried 3 | . . . 3 Impact Corruptions . | . . . . Robots Melted 2 | . 1 . 1 Combat Hostiles 1 | . . . 1 Parts Melted 7 | . 3 . 4 Heat Transferred 3361 | 250 1554 74 1483 Parts Sabotaged . | . . . . Parts Stolen . | . . . . Parts Stripped . | . . . . Power Chain Reactions . | . . . . Alert | -11 -10 -10 -10 ------- Run | Yrd Mat Min Sub Maximum Alert Level . | . . . . Low Security (%) 100 | 100 100 100 . Level 1 . | . . . . Level 2 . | . . . . Level 3 . | . . . . Level 4 . | . . . . Level 5 . | . . . . High Security . | . . . . Max Security . | . . . . Peak Influence 90 | 10 90 . . Initial 2 | . 2 . . Average 8 | 1 16 . . Influence Increases 437 | 20 347 . 70 Destroy 0b10 Robot/C 280 | . 220 . 60 Destroy 0b10 Robot/NC 65 | 20 45 . . Destroy Leader 60 | . 50 . 10 Successful Hack 15 | . 15 . . Destroy Structure 2 | . 2 . . Lose Combat Pursuer 15 | . 15 . . Influence Decreases 437 | 15 352 . 70 Entered New Map 3 | . 3 . . Time Decay 424 | 15 339 . 70 Lost Part 10 | . 10 . . Squads Dispatched 1 | . 1 . . Investigation 1 | . 1 . . Extermination . | . . . . Reinforcement . | . . . . Assault . | . . . . Garrison . | . . . . Intercept . | . . . . Searches Triggered . | . . . . Construction Impeded . | . . . . Haulers Reinforced . | . . . . Active Scanning Responses . | . . . . Cargo Convoy Interrupts . | . . . . Stealth | -11 -10 -10 -10 --------- Run | Yrd Mat Min Sub Distress Signals . | . . . . Communications Jammed . | . . . . Distress Signals . | . . . . Times Spotted 50 | . 15 2 33 Peak Tracking Total 6 | . 3 2 6 Tactical Retreats 2 | . 1 . 1 Traps | -11 -10 -10 -10 ------- Run | Yrd Mat Min Sub Traps Triggered 5 | . 3 . 2 Indirectly . | . . . . Trap Hack Attempts . | . . . . Triggered . | . . . . Disarmed . | . . . . Reprogrammed . | . . . . Reused . | . . . . Traps Extracted . | . . . . Installed . | . . . . Triggered . | . . . . Machines | -11 -10 -10 -10 ---------- Run | Yrd Mat Min Sub Machines Disabled . | . . . . Max in Single Turn . | . . . . Machines Repaired . | . . . . Machines Dismantled . | . . . . Machines Sabotaged . | . . . . Overloaded Fab Kills . | . . . . Hacking | -11 -10 -10 -10 --------- Run | Yrd Mat Min Sub Machines Accessed 10 | . 5 1 4 Terminals 5 | . 5 . . Fabricators . | . . . . Repair Stations . | . . . . Recycling Units . | . . . . Scanalyzers . | . . . . Garrison Access . | . . . . Total Hacks 20 | . 12 1 7 Successful 17 | . 9 1 7 Failed 3 | . 3 . . Catastrophic 1 | . 1 . . Database Lockouts . | . . . . Manual 12 | . 12 . . Terminals 12 | . 12 . . Fabricators . | . . . . Repair Stations . | . . . . Recycling Units . | . . . . Scanalyzers . | . . . . Garrison Access . | . . . . Terminal Hacks 12 | . 4 1 7 Record 4 | . . . 4 Prototype ID Bank 4 | . 4 . . Open Door 2 | . . 1 1 Proto ID Catalog 1 | . . . 1 Release Object 1 | . . . 1 Fabricator Hacks . | . . . . Repair Station Hacks . | . . . . Recycling Unit Hacks . | . . . . Scanalyzer . | . . . . Garrison Access Hacks . | . . . . Unauthorized Hacks 5 | . 5 . . Terminals 5 | . 5 . . Botnet 5 | . 5 . . Fabricators . | . . . . Repair Stations . | . . . . Recycling Units . | . . . . Scanalyzers . | . . . . Garrison Access . | . . . . Data Cores Recovered . | . . . . Used . | . . . . Hacking Detections 4 | . 4 . . Full Trace Events 1 | . 1 . . Feedback Events . | . . . . Feedback Blocked . | . . . . Robot Schematics Acquired . | . . . . Robots Built . | . . . . Authchips . | . . . . Time . | . . . . Total Robot Build Rating . | . . . . Part Schematics Acquired . | . . . . Parts Built . | . . . . Authchips . | . . . . Time . | . . . . Total Part Build Rating . | . . . . Part Studies Acquired . | . . . . Parts Repaired . | . . . . Time . | . . . . Parts Recycled . | . . . . Recycled Matter . | . . . . Retrieved Matter . | . . . . Retrieved Components . | . . . . Parts Scanalyzed . | . . . . Part Schematics Acquired . | . . . . Parts Damaged . | . . . . Bothacking | -11 -10 -10 -10 ------------ Run | Yrd Mat Min Sub Used RIF Installer . | . . . . Robots Hacked . | . . . . Non-combat . | . . . . Combat . | . . . . Robot Hacks Applied . | . . . . Relay Couplers Released . | . . . . Fabnet Peak Effective % . | . . . . Robots Rewired . | . . . . Allies Hacked . | . . . . Hacks Repelled . | . . . . Allies | -11 -10 -10 -10 -------- Run | Yrd Mat Min Sub Total Allies . | . . . . Largest Group . | . . . . Highest-Rated Group . | . . . . Highest-Rated Ally . | . . . . Total Orders . | . . . . Ally Attacks . | . . . . Total Damage . | . . . . Kills . | . . . . Allies Corrupted . | . . . . Allies Melted . | . . . . Intel | -11 -10 -10 -10 ------- Run | Yrd Mat Min Sub Active Infowar (turns) 3135 | . 328 555 2252 Sensors 983 | . 328 553 102 Terrain 2497 | . . 245 2252 Robot Analysis Total . | . . . . Derelict Logs Recovered 2 | . . . 2 Drone Launches . | . . . . Drone Recoveries . | . . . . Exploration | -11 -10 -10 -10 ------------- Run | Yrd Mat Min Sub Turns Passed 8081 | 72 856 728 6425 Spaces Moved 3257 | 42 760 645 1810 Core 46 | 39 . . 7 Treads 330 | . . . 330 Legs 707 | . . . 707 Wheels 837 | 3 380 . 454 Hover 225 | . . . 225 Flight 1112 | . 380 645 87 Fastest Speed 34 | 50 37 34 114 Average Speed 224 | 52 92 105 326 Slowest Speed 1200 | 80 117 194 1200 Overloaded Moves . | . . . . Propulsion Burnouts . | . . . . Robots Hopped 3 | . 1 2 . Potential Cave-ins . | . . . . Cave-ins Triggered . | . . . . Exploration Rate (%) 71 | 4 98 100 82 Regions Visited 3 Branch Regions 2 Pre-discovered Areas 3 | . . 1 2 Known Exits Taken 3 | 1 1 1 . Unknown Exits Taken . | . . . . Scrap Searched 13 | . . . 13 Spaces Dug . | . . . . Terrain Destroyed 1 | . . . 1 Melee . | . . . . Projectile 1 | . . . 1 AOE . | . . . . Terrain Rammed . | . . . . Walls Destroyed . | . . . . Machines Disabled . | . . . . Actions | -11 -10 -10 -10 --------- Run | Yrd Mat Min Sub Total 3751 | 71 849 692 2139 Wait 187 | 8 15 30 134 Move 3248 | 41 757 640 1810 Hop 3 | . 1 2 . Pick Up 67 | 8 14 4 41 Fast Attach 10 | . 2 3 5 Attach 29 | 4 6 2 17 Detach 7 | . . . 7 Swap 14 | . 10 3 1 Drop 29 | . 10 7 12 Fire 155 | 10 32 1 112 Melee . | . . . . Ram 2 | . 2 . . Kick . | . . . . Crush . | . . . . Escape Stasis . | . . . . Rewire . | . . . . Trap . | . . . . Miscellaneous . | . . . . Route ------- -11/Scrapyard -10/Materials (discovered 4 exits: *Mat x3 / *Min) -10/Mines (discovered 4 exits: *Mat x2 / *Exi / *Sub) -10/Subcaves (discovered 2 exits: *Mat x2) History --------- Turn | Location | Event 4 | -11/Scrapyard | Identified exit to Materials 4 | -11/Scrapyard | Discovered exit to Materials (range 15) 73 | -11/Scrapyard | Entered Materials 73 | -10/Materials | Evolved 1 slot: Propulsion x1 308 | -10/Materials | Build established: Hacker-Mutant 549 | -10/Materials | Identified exit to Materials 549 | -10/Materials | Discovered exit to Materials (range 13) 676 | -10/Materials | Identified exit to Mines 676 | -10/Materials | Discovered exit to Mines (range 11) 736 | -10/Materials | Discovered exit to Materials (range 3) 876 | -10/Materials | Discovered exit to Materials (range 12) 929 | -10/Materials | Entered Mines 980 | -10/Mines | Discovered exit to Materials (range 3) 1059 | -10/Mines | Discovered exit to Materials (range 5) 1062 | -10/Mines | Assembled infested the area 1094 | -10/Mines | Met 8R-AWN 1129 | -10/Mines | Identified exit to Subcaves 1129 | -10/Mines | Discovered exit to Subcaves (range 11) 1173 | -10/Mines | Found a damaged Exp. Sensor Array with a note attached 1173 | -10/Mines | Found Prototype Device 1173 | -10/Mines | Identified Exp. Sensor Array 1197 | -10/Mines | Learned location of Storage (-9) 1238 | -10/Mines | Found the Drone Emporium 1239 | -10/Mines | Found Prototype Device 1239 | -10/Mines | Identified Decoy Drone Bay 1615 | -10/Mines | Identified exit to Exiles 1615 | -10/Mines | Discovered exit to Exiles (range 5) 1657 | -10/Mines | Entered Subcaves 1679 | -10/Subcaves | Identified exit to Materials 1679 | -10/Subcaves | Discovered exit to Materials (range 6) 1743 | -10/Subcaves | Shifting Twisted Machinery released Flamer 1744 | -10/Subcaves | Ambushed by swarm of Subdwellers 1790 | -10/Subcaves | Lost 3 parts (2n1u) 2080 | -10/Subcaves | Learned Materials stockpile data 2243 | -10/Subcaves | Build established: Scavenger-Mutant 2288 | -10/Subcaves | Discovered exit to Materials (range 9) 2599 | -10/Subcaves | Shifting Twisted Machinery released Shrapnel Trap 2624 | -10/Subcaves | Build established: Hacker-Mutant 3096 | -10/Subcaves | Shifting Twisted Machinery released Sub. Laser 3125 | -10/Subcaves | A swath of the cavern ceiling suddenly collapsed 3792 | -10/Subcaves | Visited 4L-MR0's lab 4018 | -10/Subcaves | Core integrity fell below 50% 4062 | -10/Subcaves | Lost 3 parts (2n1w) 4289 | -10/Subcaves | Core integrity fell below 20% 4299 | -10/Subcaves | Lost 4 parts (3n1w) 4656 | -10/Subcaves | Visited Clippyterm 4666 | -10/Subcaves | Learned location of Section 7 (-2) 5867 | -10/Subcaves | Build established: Hauler-Mutant 5943 | -10/Subcaves | Found SUBCON Basin 8082 | -10/Subcaves | Destroyed by S-10 Pest with Light Assault Rifle Last Messages --------------- 05560_ Dropped Hcp. Storage Unit. 05562_ Acquired Hcp. Storage Unit. 05575_ Acquired Sub. Monowheel. 05588_ Acquired Mak. Hacking Suite. 05601_ Acquired Sub. Laser. 05603_ Subatomizers dissect the Sub. Optics. 05614_ Acquired Sub. Machine Gun. 05651_ Acquired Sub. Optics. 05664_ Acquired Mak. System Restoration Module. 05677_ Acquired Sub. Beam Cannon. 05690_ Acquired Scrap Shield. 05943_ Acquired SUBCON Basin. 05953_ Subatomizers dissect the Mak. Axe. 05956_ Acquired Mak. Axe. 05969_ Acquired Sub. Monowheel. 05982_ Acquired Datajack. 05995_ Acquired Sub. Optics. 06008_ Acquired Mak. Targeting Computer. 06021_ Acquired Spk. Treads. 07982_ Mak. Flight Unit destroyed. Map ----- +----------------------------------------------------+ | " #??## #?????#???#????????????????????????? | | % %"##???# #?????????????????????#????????????? | | #""""##??### "#??#??????????????????????????#????? | | ######???# "#?#?????#?#?#????????#?#???????????? | | ##########"" ##???#??#?##????????????????????????? | | #" "# % ###?????#???????######?????#?##?#????? | | #""& %[ ##"%"###???#?#????## ######???????#??? | | ## #" ##"" #???#????#### ## #???#??????? | | ######" "#### #??##?????# #???#??????? | | ### " ## #????#??#?## #?????#?#??? | | ###????##### ##### #???#??????? | | ###### ## ###??# #???????#??# | | ####????## ##?????#???## | | ### # #######?## ##????#???## | | ## #?## ## ## ### ##????#??# | | ?# #?## ####### ##????#?# | | ##### #?#######????# ### #??????# | | ????# #???????##???###?# #????#?# | | #???## ##?????#???#?????### ##?????## | | ??????##?????????????????## ######?## | | ##?#????#???#??????????#?# ### #??# | | #??????????????#????????## #?# #### | | ???????????????????????## #### ### | | ??????#??#???????????### #### #?# | | ????????#????????????# ## ### | | ?????????????????????## @ ### | | ??????????????????????# # " #?## | | #?????????????????????# ###### #??## | | ??????????????????????# #????##### #?# ## | | ??????????????????????# #?????#?## ##? | | ??????????????????????# #????????## #?? | | ??????????????????????# ##????????## ?? | | ??????????????????????# s#??????????## " ## ##? | | ??????????????????????#ss #???????????# ### #### | | ??????????????????????# ????????? ""??# # | | ?????????????????????? s ????????? """??## ? | | ?????????????????????? ????????? " "#??# # | | ?????????????????????? ????????? "" ##?###??? | | ?????????????????????? t t????????? " ##?????? | | ????????????????????? " "????????? " "??????? | | ???????????????????????? ?????????? " "???????? | | ??????????????????????????????????? " #???????? | | ???????????????????????????????????# " ##????##? | | ??????????????????????????????????## ##?????? | | ?????????????????????????????????## ##????? | | ???????????????????????#####????## ## ###### | | ???????????????????????# ###?# & ## # | | ???????????????????????# ### ## % | | ???????????????????###??# # # # # | | ??????????????????## #??# ## %= #### | +----------------------------------------------------+ Best States ------------- Heat Dissipation 25 Energy Generation 14 Energy Capacity 250 Matter Stores 300 Matter Capacity 300 Sight Range 16 Robot Scan Range 20 Terrain Scan Range 16 Terrain Scan Density 10 Resistance: KI 35 Resistance: TH 35 Resistance: EX 35 Resistance: EM 35 Resistance: I 35 Resistance: S 35 Resistance: P 35 Evasion (%) 63 Recoil Reduction 1 Offensive Hacking 20 Item Schematics ----------------- None Robot Schematics ------------------ None Fabricated ------------ Nothing Repaired ---------- Nothing Studied --------- None Alien Tech Used ----------------- None Achievements -------------- None Challenges ------------ None Game ------ Seed ChainMappingMinigun Manual? 0 Play Time 00:27:51 Cumulative 195.7 hours Start 2025.12.12 @ 14:12:27 End 2025.12.12 @ 14:37:37 Sessions 1 Manual Loads 0 Difficulty Explorer Special Mode None Game No. 287 Rogue 0 Adventurer 0 Explorer 287 Win Type - Total 0 Types 0/0/0/0/0/0/0/0/0/0 Lore% 71 Gallery% 67 Achievement% 53 Wizard Run 0 Options --------- Layout 1 ASCII 0 Keyboard 0 Movement Mouse Keybinds 0 Fullscreen 1 Font 24/Smallcaps Map View 50x35 Zoom Use 0% Tactical HUD 1 Map Filters NONE Filters NONE Steam 1 RUN: 3026ea51-7cc6-4b7b-a861-d3be5e11843b